bitfinex/quotes_ETHUSD_20240530
["timestamp","ask_amount","ask_price","bid_price","bid_amount"]
[1717053769007,1.60237,3744.5,3741.5,1.069934]
[1717053769008,1.60273,3743.7,3741.7,4.58651]
[1717053769178,0.160273,3743.6,3742.0,1.60338]
[1717053769373,2.935,3745.0,3742.6,1.60315]
[1717053769577,2.935,3745.0,3742.1,0.0534325]
[1717053769578,0.57806286,3744.9,3743.7,1.60265]
[1717053769819,1.60186,3745.7,3743.7,1.60265]
[1717053770283,1.60186,3745.7,3743.8,1.29789222]
[1717053770489,1.60208,3745.2,3743.8,1.29789222]
[1717053771375,2.17962502,3745.8,3743.9,2.90046222]
[1717053771579,1.6018,3745.8,3744.1,1.29789222]
[1717053772008,1.60155,3746.4,3744.3,2.90028222]
[1717053772193,1.60155,3746.4,3744.5,1.60233]
[1717053772397,1.60155,3746.4,3744.6,1.29789222]
[1717053772615,0.448555,3746.3,3744.7,0.59002222]
[1717053772813,1.60163,3746.2,3744.8,1.29789222]
[1717053773137,1.60163,3746.2,3744.5,1.60233]
[1717053773325,1.60163,3746.2,3744.6,1.29789222]
[1717053773524,1.29789222,3746.1,3743.2,10.3816]
[1717053773839,1.6021,3745.1,3743.7,1.60265]
[1717053774079,1.60185,3745.7,3743.9,2.90049222]
[1717053774348,3.0,3746.0,3744.3,1.60242]
[1717053774494,3.0,3746.2,3744.4,1.29789222]
[1717053774701,2.050135,3746.3,3744.4,1.29789222]
[1717053774939,1.60172,3746.0,3744.5,0.29003122]
[1717053775140,1.60172,3746.0,3744.6,1.29789222]
[1717053775340,1.60147,3746.6,3744.7,1.60224]
[1717053775643,1.60147,3746.6,3745.1,1.60208]
[1717053775854,1.60147,3746.6,3745.2,1.29789222]
[1717053776009,1.60147,3746.6,3745.3,0.28999722]
[1717053776207,1.60147,3746.6,3745.4,1.29789222]
[1717053776735,1.60147,3746.6,3745.3,0.28999722]
[1717053777038,1.60147,3746.6,3744.6,3.0]
[1717053777241,1.6019,3745.6,3743.9,1.60258]
[1717053777421,1.6019,3745.6,3744.2,1.60245]
[1717053777738,4.60163,3746.2,3744.6,1.6023]
[1717053777912,1.6018,3745.8,3744.0,1.60255]
[1717053778096,3.0,3745.9,3744.2,1.60245]
[1717053778294,1.60162,3746.2,3744.6,1.60229]
[1717053778497,4.60162,3746.2,3744.7,1.29789222]
[1717053778709,3.004,3746.7,3744.8,1.60218]
[1717053778925,1.60138,3746.8,3745.0,5.66659222]
[1717053779253,1.60138,3746.8,3745.4,1.60194]
[1717053779468,1.60138,3746.8,3745.5,1.29789222]
[1717053780035,1.60138,3746.8,3745.0,2.7666]
[1717053780036,2.89927222,3746.8,3745.0,2.7666]
[1717053780245,2.89927222,3746.8,3745.0,4.06449222]
[1717053780403,0.28992722,3746.7,3745.1,1.86456144]
[1717053781144,0.57759937,3747.3,3745.5,1.29789222]
[1717053781329,1.60121,3747.2,3745.7,1.60182]
[1717053781522,1.60121,3747.2,3745.8,1.29789222]
[1717053782218,1.60143,3746.7,3745.0,4.36871]
[1717053782437,1.60164,3746.2,3744.5,7.38]
[1717053782633,1.60175,3746.0,3744.6,1.29789222]
[1717053783244,1.60175,3746.0,3744.3,3.21953422]
[1717053783428,1.60192,3745.5,3744.4,1.29789222]
[1717053784557,1.60192,3745.5,3743.4,1.339816]
[1717053784558,1.60212,3745.1,3743.4,1.339816]
[1717053784873,1.60212,3745.1,3743.5,2.33016282]
[1717053784874,0.55,3745.0,3743.5,2.33016282]
[1717053785074,1.60212,3745.1,3742.9,2.922]
[1717053785075,1.60212,3745.1,3743.6,2.90062222]
[1717053785278,7.38,3746.8,3744.8,1.60219]
[1717053785581,4.53314,3746.9,3744.8,1.60219]
[1717053785932,4.53314,3746.9,3744.9,1.29789222]
[1717053786232,1.60146,3746.6,3745.0,0.59000822]
[1717053786431,1.6017,3746.0,3744.4,2.933]
[1717053786682,1.6017,3746.0,3744.5,1.29789222]
[1717053786838,1.6017,3746.0,3743.6,2.9169922]
[1717053786839,1.60193,3745.5,3743.6,4.45791]
[1717053787039,1.60215,3745.0,3743.7,1.29789222]
[1717053787239,1.60215,3745.0,3743.0,1.60297]
[1717053787485,0.710215,3744.9,3743.1,0.445817]
[1717053787685,0.710215,3744.9,3743.2,1.60286]
[1717053787885,1.60215,3745.0,3743.6,1.60272]
[1717053788041,1.6019,3745.6,3744.2,2.8552]
[1717053788234,1.6019,3745.6,3744.3,1.29789222]
[1717053789057,1.6019,3745.6,3744.3,2.90029222]
[1717053789681,1.6019,3745.6,3744.2,2.8552]
[1717053789682,1.6019,3745.6,3744.4,1.29789222]
[1717053790038,1.76209,3745.6,3744.4,1.29789222]
[1717053790946,3.0,3746.1,3744.4,1.29789222]
[1717053791132,1.60164,3746.2,3744.5,2.90023222]
[1717053792895,1.60181,3745.8,3744.5,2.90023222]
[1717053793110,1.60181,3745.8,3744.7,1.60226]
[1717053793307,4.60156,3746.4,3744.9,1.60217]
[1717053793478,0.57763812,3746.3,3745.0,1.29789222]
[1717053793977,4.60156,3746.4,3745.0,1.29789222]
[1717053794174,0.57761765,3746.3,3745.0,1.29789222]
[1717053794713,3.57761765,3746.3,3745.0,1.29789222]
[1717053794918,0.57761765,3746.2,3745.1,0.31954175]
[1717053795113,1.60156,3746.4,3745.2,1.29789222]
[1717053796213,1.60179,3745.8,3744.2,4.60247]
[1717053796411,1.60179,3745.8,3744.3,1.29789222]
[1717053796574,1.60179,3745.8,3744.4,0.59003622]
[1717053796780,1.60179,3745.8,3744.5,1.29789222]
[1717053798591,1.60179,3745.8,3744.2,1.60247]
[1717053798592,1.60201,3745.3,3744.0,2.9734]
[1717053798797,1.60201,3745.3,3744.1,1.29789222]
[1717053799315,1.60217,3745.0,3743.5,1.60276]
[1717053799526,1.60217,3745.0,3743.6,2.05262822]
[1717053799675,1.60217,3745.0,3743.6,5.05262822]
[1717053800922,1.60217,3745.0,3743.7,1.60266]
[1717053801132,1.60217,3745.0,3743.9,1.60259]
[1717053801319,1.60217,3745.0,3744.0,1.29789222]
[1717053801475,1.60217,3745.0,3744.1,0.29004822]
[1717053801675,1.60217,3745.0,3744.2,1.29789222]
[1717053802628,0.5776628,3745.4,3744.2,1.29789222]
[1717053802921,0.5776628,3745.4,3744.3,1.60241]
[1717053803226,1.60182,3745.8,3744.4,1.29789222]
[1717053803429,2.1794828,3745.8,3744.5,0.29003022]
[1717053803735,2.1794828,3745.8,3744.6,1.29789222]
[1717053804036,0.5776628,3745.9,3744.7,1.60224]
[1717053804335,0.5776628,3745.9,3744.8,1.29789222]
[1717053804589,1.60157,3746.4,3745.1,2.89996222]
[1717053805257,1.60157,3746.4,3744.9,0.29001322]
[1717053805258,0.5776628,3746.8,3745.4,1.60195]
[1717053805478,4.03939222,3746.7,3744.2,7.38]
[1717053805623,1.60169,3746.1,3744.6,2.90018222]
[1717053805949,1.60169,3746.1,3744.7,0.31902124]
[1717053806251,1.60169,3746.1,3744.8,1.29789222]
[1717053808164,1.60169,3746.1,3745.0,1.60213]
[1717053808318,1.60169,3746.1,3745.1,1.29789222]
[1717053808672,1.60169,3746.1,3743.9,3.0]
[1717053808673,1.60169,3746.1,3744.4,3.0]
[1717053808847,1.60169,3746.1,3745.1,1.29789222]
[1717053810063,0.5776628,3746.4,3744.6,1.60228]
[1717053810261,0.5776628,3746.4,3744.6,1.29789222]
[1717053810262,1.60187,3745.7,3744.6,1.29789222]
[1717053810466,1.762057,3745.7,3744.6,1.29789222]
[1717053811344,1.60205,3745.2,3744.0,1.60252]
[1717053811545,1.60205,3745.2,3744.1,1.29789222]
[1717053812140,1.60205,3745.2,3743.4,1.60278]
[1717053812354,1.60218,3744.9,3743.7,1.29789222]
[1717053812640,1.60218,3744.9,3743.4,1.60278]
[1717053812872,1.60241,3744.4,3742.8,1.60305]
[1717053813089,1.60241,3744.4,3742.9,1.29789222]
[1717053813298,2.18025667,3744.4,3742.9,1.29789222]
[1717053814065,1.60256,3744.0,3742.8,1.60305]
[1717053814276,1.60256,3744.0,3742.8,2.90094222]
[1717053814565,1.60256,3744.0,3742.9,0.29009422]
[1717053814763,1.60256,3744.0,3742.8,1.29789222]
[1717053816939,1.60289,3743.3,3741.6,4.53756]
[1717053817149,1.60289,3743.3,3741.7,1.29789222]
[1717053819155,1.60289,3743.3,3741.7,4.29789222]
[1717053819340,1.60311,3742.8,3741.7,4.29789222]
[1717053820541,2.9174,3743.4,3741.7,4.29789222]
[1717053820542,0.57815093,3743.3,3741.7,4.29789222]
[1717053820772,4.52024,3743.4,3741.7,4.29789222]
[1717053822174,1.60301,3743.0,3741.7,1.29789222]
[1717053823586,1.60301,3743.0,3741.8,1.60349]
[1717053823793,1.60274,3743.6,3742.0,1.60341]
[1717053824099,1.60274,3743.6,3742.1,1.29789222]
[1717053825391,1.60302,3743.0,3741.7,3.0]
[1717053825596,1.60302,3743.0,3741.8,1.59789222]
[1717053825747,1.60302,3743.0,3741.8,1.29789222]
[1717053828503,1.60302,3743.0,3741.8,4.29789222]
[1717053829409,1.60302,3743.0,3741.8,1.29789222]
[1717053829566,4.56662,3743.0,3741.8,1.29789222]
[1717053830130,1.60321,3742.5,3741.2,3.0]
[1717053830438,1.60321,3742.5,3741.3,2.05471922]
[1717053833226,2.9636,3743.0,3741.4,2.90156222]
[1717053833628,1.60298,3743.1,3741.7,1.60354]
[1717053833791,1.60298,3743.1,3741.8,1.29789222]
[1717053833991,1.60298,3743.1,3741.9,0.29014322]
[1717053834221,1.60298,3743.1,3741.9,1.58803544]
[1717053834491,1.60298,3743.1,3741.9,0.29014322]
[1717053836392,0.5781461,3743.6,3741.4,3.0]
[1717053836393,0.55,3743.0,3741.4,3.0]
[1717053836725,0.55,3743.0,3741.4,1.29789222]
[1717053837660,1.60295,3743.1,3741.5,2.90149222]
[1717053837957,1.60295,3743.1,3741.6,0.36583192]
[1717053838163,1.60295,3743.1,3741.7,1.29789222]
[1717053838760,1.60295,3743.1,3741.6,0.36583192]
[1717053839061,1.60307,3742.9,3741.6,1.66372414]
[1717053841363,1.60307,3742.9,3741.6,0.36583192]
[1717053841573,1.6032,3742.5,3741.3,0.756827]
[1717053841859,4.13922055,3742.8,3741.0,7.56833]
[1717053841860,1.60331,3742.3,3741.0,4.60383]
[1717053842051,1.60331,3742.3,3741.0,2.90172222]
[1717053842991,1.60331,3742.3,3741.1,1.29789222]
[1717053843148,1.60331,3742.3,3741.2,0.29017222]
[1717053843349,1.60331,3742.3,3741.2,1.58806444]
[1717053844091,0.57813551,3742.6,3741.3,1.29789222]
[1717053844545,2.18134008,3742.6,3741.3,1.29789222]
[1717053845385,2.18134008,3742.6,3741.2,0.29017222]
[1717053845557,1.60332,3742.3,3741.0,1.60383]
[1717053845763,1.60332,3742.3,3741.0,2.90172222]
[1717053846483,1.60332,3742.3,3741.0,1.60383]
[1717053846845,2.18148008,3742.3,3741.0,1.60383]
[1717053847687,2.18148008,3742.3,3740.5,3.0]
[1717053847688,1.6035,3741.8,3740.5,3.0]
[1717053847849,1.6035,3741.8,3740.6,0.460407]
[1717053848696,1.6035,3741.8,3740.7,1.29789222]
[1717053850388,2.8543,3741.7,3740.6,0.460407]
[1717053850590,2.8543,3741.7,3740.4,1.60407]
[1717053850595,1.60359,3741.6,3740.4,1.60407]
[1717053850796,1.60379,3741.2,3739.9,1.60431]
[1717053850979,1.60379,3741.2,3739.9,2.90220222]
[1717053851162,1.60379,3741.2,3740.0,0.29022022]
[1717053852255,1.60387,3741.0,3739.4,2.88]
[1717053852481,1.60387,3741.0,3739.6,1.60443]
[1717053852684,1.60387,3741.0,3739.8,1.60435]
[1717053852905,1.60387,3741.0,3739.9,1.29789222]
[1717053853657,2.18200478,3741.5,3740.0,1.60427]
[1717053853858,2.18200478,3741.5,3740.1,1.58810844]
[1717053854270,2.18200478,3741.5,3740.2,1.60415]
[1717053854493,2.18200478,3741.5,3740.3,1.29789222]
[1717053854692,2.18197846,3741.5,3740.3,1.29789222]
[1717053854919,1.60363,3741.5,3740.3,1.29789222]
[1717053855076,1.60363,3741.5,3740.4,0.31922584]
[1717053855418,1.60363,3741.5,3740.5,1.29789222]
[1717053855561,0.57833192,3741.6,3740.6,1.60401]
[1717053855765,3.57832812,3741.9,3740.7,1.29789222]
[1717053855986,0.57829776,3741.8,3740.8,0.29019022]
[1717053856187,1.60361,3741.6,3740.0,1.60424]
[1717053856395,1.60361,3741.6,3740.1,1.29789222]
[1717053856578,1.60361,3741.6,3740.1,4.29789222]
[1717053857176,1.6038,3741.2,3740.0,1.60424]
[1717053860301,1.6038,3741.2,3739.5,1.60448]
[1717053860499,1.60389,3740.9,3739.6,1.74634022]
[1717053860773,1.60389,3740.9,3739.6,0.448448]
[1717053861006,1.60389,3740.9,3739.5,1.60448]
[1717053861215,2.18227858,3740.9,3739.5,1.60448]
[1717053861431,1.60389,3740.9,3739.5,1.60448]
[1717053861831,2.18234863,3740.9,3739.5,1.60448]
[1717053862918,1.60404,3740.6,3739.5,1.60448]
[1717053863117,2.17612986,3740.6,3739.5,1.60448]
[1717053864041,2.17612986,3740.6,3739.0,1.60469]
[1717053864188,1.60417,3740.3,3739.0,1.60469]
[1717053870032,1.60434,3739.9,3738.4,1.60492]
[1717053870359,0.710434,3739.8,3738.5,0.460492]
[1717053870495,0.710434,3739.8,3738.4,1.60492]
[1717053871312,1.60441,3739.7,3738.4,1.60492]
[1717053872956,1.60441,3739.7,3738.6,1.60484]
[1717053873097,3.0,3740.1,3738.6,2.90273222]
[1717053873418,0.60358736,3740.0,3738.7,0.29027322]
[1717053874447,0.60358736,3740.0,3738.8,1.60477]
[1717053878212,3.0,3740.1,3738.8,1.60477]
[1717053880200,0.57858928,3740.0,3738.8,1.60477]
[1717053880538,3.0,3740.1,3738.8,1.60477]
[1717053880931,0.57859359,3740.0,3738.8,1.60477]
[1717053881096,0.57859359,3740.0,3738.9,1.29789222]
[1717053881301,3.0,3740.1,3739.0,0.31929354]
[1717053883258,3.0,3740.1,3739.0,1.61718576]
[1717053883473,1.6042,3740.2,3739.1,2.90255222]
[1717053884061,0.57857697,3740.6,3739.1,2.90255222]
[1717053885006,3.57857697,3740.6,3739.1,2.90255222]
[1717053885348,0.57857697,3740.5,3739.2,0.32218458]
[1717053885531,0.57857697,3740.5,3739.3,1.29789222]
[1717053886058,0.57853536,3740.5,3739.3,1.29789222]
[1717053887341,0.57854471,3740.5,3739.3,1.29789222]
[1717053888126,0.57854471,3740.5,3739.4,3.019]
[1717053888323,0.57854471,3740.5,3739.5,3.3662499]
[1717053888531,0.57854471,3741.1,3739.9,1.60429]
[1717053888774,1.60378,3741.2,3739.5,1.7617999]
[1717053888775,2.18232471,3741.2,3740.1,1.6042]
[1717053888913,2.18232471,3741.2,3740.2,1.58810144]
[1717053889119,1.60378,3741.2,3740.2,1.58810144]
[1717053890056,1.60378,3741.2,3740.2,0.29020922]
[1717053890257,1.60378,3741.2,3740.1,1.6042]
[1717053890557,5.18215229,3741.2,3740.1,1.6042]
[1717053890730,2.18215229,3741.2,3740.1,1.6042]
[1717053890931,2.18215229,3741.2,3739.5,0.46390768]
[1717053890932,5.18215229,3741.2,3739.6,1.60443]
[1717053891131,0.57837229,3741.1,3739.7,1.29789222]
[1717053891364,0.57837229,3741.1,3739.8,0.33662299]
[1717053891519,0.57837229,3741.1,3739.8,1.63451521]
[1717053892033,1.6039,3740.9,3739.8,0.33662299]
[1717053892255,1.6039,3740.9,3739.6,1.60443]
[1717053892429,1.60404,3740.6,3739.5,0.46390768]
[1717053893117,1.60404,3740.6,3739.5,3.3662699]
[1717053894031,1.60404,3740.6,3739.6,1.29789222]
[1717053894219,0.57837229,3740.8,3739.6,1.29789222]
[1717053894548,0.57837229,3740.8,3739.7,0.63852699]
[1717053894917,0.57837229,3740.8,3739.6,1.29789222]
[1717053895166,4.09757631,3740.7,3739.5,1.60447]
[1717053895373,2.5219586,3740.6,3739.5,1.60447]
[1717053895680,1.94358631,3740.5,3739.5,1.60447]
[1717053895837,1.60411,3740.4,3738.9,1.60471]
[1717053896039,1.94358631,3740.3,3739.0,1.76663054]
[1717053896331,2.5219586,3740.3,3739.0,1.76663054]
[1717053896540,1.94358631,3740.2,3739.0,1.76663054]
[1717053896764,1.94358631,3740.2,3739.0,0.46873832]
[1717053896964,2.65166867,3740.2,3739.0,0.46873832]
[1717053897134,0.70808236,3740.2,3739.0,0.46873832]
[1717053897340,1.94387982,3740.1,3739.0,0.46873832]
[1717053897644,0.70808236,3740.2,3739.0,0.46873832]
[1717053897968,1.94389946,3740.1,3739.0,0.46873832]
[1717053898261,1.94389946,3740.1,3739.1,0.48658483]
[1717053898450,0.57837229,3740.3,3739.1,0.48658483]
[1717053898661,1.94391879,3740.2,3739.1,0.48658483]
[1717053898841,1.94391879,3740.1,3739.1,0.48658483]
[1717053899174,1.94394227,3740.0,3738.9,1.60471]
[1717053899336,1.94394227,3739.9,3738.9,1.60471]
[1717053899532,0.57837229,3740.1,3738.9,1.60471]
[1717053899857,1.94400449,3740.0,3738.9,1.60471]
[1717053900059,2.29882594,3739.9,3738.9,1.60471]
[1717053900378,1.94400449,3739.8,3738.9,1.60471]
[1717053900736,0.35482145,3739.9,3738.9,1.60471]
[1717053901266,3.54841866,3739.8,3738.4,1.60494]
[1717053901589,1.60445,3739.6,3738.4,1.60494]
[1717053901786,1.60445,3739.6,3738.4,2.90283222]
[1717053901787,1.94415121,3739.5,3738.4,2.90283222]
[1717053902079,5.5225235,3739.5,3738.4,2.90283222]
[1717053902399,0.57837229,3739.4,3738.4,2.90283222]
[1717053902676,1.94418061,3739.4,3738.4,2.90283222]
[1717053902881,0.57863539,3739.5,3738.6,1.60486]
[1717053903049,3.57862379,3739.8,3738.6,2.90275222]
[1717053903380,2.52276617,3739.7,3738.6,2.90275222]
[1717053903576,4.60424,3740.1,3738.6,2.90275222]
[1717053903577,1.94412483,3739.6,3738.6,1.60486]
[1717053903779,0.19441248,3739.5,3738.1,1.60508]
[1717053903980,2.13853731,3739.5,3738.1,1.60508]
[1717053904151,1.94412483,3739.4,3738.1,1.60508]
[1717053905457,4.95512483,3739.4,3738.1,1.60508]
[1717053905643,5.52274862,3739.3,3738.1,1.60508]
[1717053905973,1.96,3739.0,3738.1,1.60508]
[1717053906181,1.94412483,3738.9,3738.1,1.60508]
[1717053906388,2.52274862,3738.9,3738.1,1.60508]
[1717053906538,1.94412483,3738.8,3738.1,1.60508]
[1717053906970,1.94412483,3738.8,3737.5,1.6053]
[1717053907235,2.39239969,3738.8,3737.6,0.16053]
[1717053907466,1.94412483,3738.7,3737.6,0.16053]
[1717053908072,1.94412483,3738.7,3737.5,1.6053]
[1717053909509,2.9916,3738.5,3737.5,1.6053]
[1717053909653,1.94474996,3738.4,3737.5,1.6053]
[1717053911049,1.94474996,3738.4,3737.0,1.60555]
[1717053911254,1.96,3738.2,3737.0,1.60555]
[1717053911492,1.96,3738.2,3737.1,0.160555]
[1717053912215,0.55,3738.1,3737.1,0.160555]
[1717053912570,0.55,3738.1,3737.0,1.60555]
[1717053916735,4.59655,3738.5,3737.0,1.60555]
[1717053916896,3.0,3738.4,3737.2,1.60546]
[1717053917099,0.72740236,3738.3,3737.2,1.60546]
[1717053917428,2.68740236,3738.3,3737.2,1.60546]
[1717053917599,3.0,3738.2,3737.2,1.60546]
[1717053917807,3.0,3738.2,3737.2,2.90335222]
[1717053918008,3.0,3738.4,3737.2,2.90335222]
[1717053918307,3.0,3738.4,3737.3,0.29033522]
[1717053918524,3.0,3738.4,3737.4,1.60538]
[1717053918723,4.59655,3738.5,3737.4,1.60538]
[1717053919015,3.0,3738.8,3737.4,1.60538]
[1717053919243,4.96,3738.9,3737.4,1.60538]
[1717053919410,4.96,3738.9,3737.5,0.31936074]
[1717053919726,3.0,3738.9,3737.7,1.60524]
[1717053919897,4.6047,3739.0,3737.7,1.60524]
[1717053920295,1.60479,3738.8,3737.7,1.60524]
[1717053920501,1.96,3738.7,3737.7,1.60524]
[1717053920729,0.78626822,3738.6,3737.7,1.60524]
[1717053920891,0.78626822,3738.6,3736.5,3.0]
[1717053920892,0.78626822,3738.6,3737.2,1.60547]
[1717053921098,2.08416044,3738.6,3737.2,1.60547]
[1717053921493,1.60493,3738.5,3737.4,1.60535]
[1717053923115,1.29789222,3738.4,3736.9,1.6056]
[1717053923447,1.96,3737.9,3736.9,1.6056]
[1717053923749,3.0,3738.2,3736.9,1.6056]
[1717053924159,1.60513,3738.1,3736.4,2.8098]
[1717053924331,1.60513,3738.1,3736.5,1.29789222]
[1717053924507,0.78626822,3738.0,3736.7,1.60568]
[1717053925249,2.08416044,3738.0,3736.7,1.60568]
[1717053925463,0.55,3737.9,3736.7,1.60568]
[1717053928678,0.57894443,3738.0,3736.9,1.60559]
[1717053928818,0.57894443,3738.1,3737.1,4.7804]
[1717053929022,0.57894443,3738.9,3737.2,1.29789222]
[1717053929763,0.57894443,3738.9,3737.1,2.8204]
[1717053929764,1.96,3738.4,3736.6,5.9541]
[1717053929922,0.196,3738.3,3736.7,1.89330222]
[1717053930842,0.77494443,3738.3,3736.7,1.89330222]
[1717053931018,0.77494443,3738.3,3735.5,9.24177064]
[1717053931019,1.96,3738.1,3735.7,1.96]
[1717053931387,2.53894443,3738.1,3736.3,1.29789222]
[1717053931728,3.0,3738.0,3736.3,1.29789222]
[1717053932073,0.57894443,3737.9,3736.5,1.60575]
[1717053932282,1.41842862,3737.9,3736.6,0.29036422]
[1717053932747,0.57894443,3737.9,3736.8,1.60564]
[1717053932933,0.57894443,3737.9,3736.9,1.29789222]
[1717053933134,0.57894443,3738.0,3736.9,1.29789222]
[1717053933456,0.57894443,3738.0,3737.5,1.60534]
[1717053933658,0.57894443,3738.7,3737.7,1.60525]
[1717053933859,2.18356443,3739.2,3738.0,1.60511]
[1717053934031,2.18356443,3739.2,3738.1,0.0534973]
[1717053934229,0.57894443,3739.2,3738.2,1.60504]
[1717053934464,0.57872312,3739.2,3738.2,1.89533322]
[1717053934643,0.57872312,3739.2,3738.4,1.60494]
[1717053934863,4.4102,3739.8,3738.5,1.29789222]
[1717053934864,0.57872312,3739.7,3738.5,1.29789222]
[1717053935556,0.57872312,3739.7,3738.6,1.60486]
[1717053935854,0.57872312,3739.7,3738.7,1.29789222]
[1717053936055,0.57872312,3739.7,3738.8,0.29027522]
[1717053936261,1.96,3739.9,3738.9,1.29789222]
[1717053936664,0.57872312,3740.2,3739.0,1.60468]
[1717053936994,0.57872312,3740.2,3739.1,1.29789222]
[1717053937354,0.57872312,3740.2,3739.4,1.60452]
[1717053937599,1.071558,3740.4,3739.4,3.19265344]
[1717053938220,1.071558,3740.4,3739.4,1.60452]
[1717053938663,1.65028112,3740.4,3739.4,1.60452]
[1717053938863,4.65028112,3740.4,3739.4,1.60452]
[1717053939063,4.65028112,3740.4,3739.4,2.90241222]
[1717053939295,0.57872312,3740.3,3739.4,2.90241222]
[1717053939501,1.071558,3740.4,3739.5,1.58813344]
[1717053940387,1.071558,3740.4,3739.4,1.60452]
[1717053942394,1.071558,3740.4,3738.8,0.29027522]
[1717053942395,3.56418,3740.3,3738.8,1.89503522]
[1717053942590,3.0,3740.2,3738.8,1.89503522]
[1717053942830,3.0,3740.2,3737.3,7.38]
[1717053942831,5.64755222,3740.1,3738.2,1.60504]
[1717053943144,1.60438,3739.8,3738.3,1.29789222]
[1717053943548,5.18300135,3739.8,3738.3,1.29789222]
[1717053943746,4.60438,3739.8,3738.4,1.60496]
[1717053944047,3.0,3739.8,3738.6,1.60486]
[1717053944256,1.60413,3740.4,3739.0,2.8599]
[1717053944408,1.94408244,3740.3,3739.1,1.29789222]
[1717053944608,5.52268303,3740.3,3739.1,1.29789222]
[1717053944912,3.0,3740.3,3739.1,1.29789222]
[1717053945260,1.60413,3740.4,3739.1,1.29789222]
[1717053945436,1.60413,3740.4,3739.2,0.41577922]
[1717053945640,1.60413,3740.4,3739.2,1.71367144]
[1717053947536,1.60413,3740.4,3739.3,1.29789222]
[1717053948947,0.57857261,3740.6,3739.3,1.29789222]
[1717053949149,0.57855318,3740.9,3739.4,1.60452]
[1717053949352,1.60388,3741.0,3739.6,1.60442]
[1717053949535,1.60388,3741.0,3739.7,1.29789222]
[1717053951353,1.60388,3741.0,3739.8,3.0087]
[1717053951516,1.60388,3741.0,3739.9,1.29789222]
[1717053951711,1.60388,3741.0,3740.0,0.43065922]
[1717053954558,7.38,3741.8,3740.3,2.7818]
[1717053954848,2.9947,3742.3,3740.4,1.29789222]
[1717053955055,1.94328885,3742.2,3740.4,1.29789222]
[1717053955437,2.9947,3742.3,3740.4,1.29789222]
[1717053955638,0.49547,3742.2,3740.5,0.40796922]
[1717053955842,0.49547,3742.2,3740.6,1.29789222]
[1717053956042,1.60342,3742.0,3740.6,1.29789222]
[1717053957463,3.49547,3742.2,3740.3,2.7818]
[1717053957464,3.56364,3741.5,3740.3,2.7818]
[1717053957624,0.356364,3741.4,3740.3,2.7818]
[1717053957829,3.56364,3741.5,3740.4,1.6041]
[1717053957830,1.60364,3741.5,3740.4,1.6041]
[1717053958914,3.0,3741.9,3740.5,1.29789222]
[1717053959142,3.56342,3742.0,3740.5,1.29789222]
[1717053959345,3.0,3741.9,3740.5,1.29789222]
[1717053959673,3.68020722,3741.9,3740.6,0.56837922]
[1717053959817,3.68020722,3741.9,3740.6,1.86627144]
[1717053961222,3.68020722,3741.9,3740.4,1.6041]
[1717053961223,1.60356,3741.7,3740.4,1.6041]
[1717053963862,1.60356,3741.7,3740.5,1.29789222]
[1717053964921,1.60356,3741.7,3740.6,1.60398]
[1717053965272,0.57831808,3742.0,3740.6,2.90187222]
[1717053965826,0.57831808,3742.0,3740.7,0.05345898]
[1717053966163,1.29248289,3742.0,3740.8,0.29553312]
[1717053967330,1.29247383,3742.0,3740.8,0.29553312]
[1717053969635,1.29247798,3742.0,3740.8,0.29553312]
[1717053970258,0.57831317,3742.0,3740.9,4.53768]
[1717053971075,1.60333,3742.2,3740.9,4.53768]
[1717053973364,1.60333,3742.2,3740.9,5.83557222]
[1717053974544,3.57826935,3742.6,3741.1,1.60377]
[1717053974755,0.57826935,3742.5,3741.2,0.64901357]
[1717053974945,1.60312,3742.8,3741.2,0.59556165]
[1717053976478,1.60312,3742.8,3741.9,1.60344]
[1717053976479,0.57826935,3742.8,3741.9,1.60344]
[1717053976685,0.57826935,3742.8,3742.1,3.0235]
[1717053976985,0.57826935,3743.3,3742.2,0.59248322]
[1717053977187,0.57826935,3743.3,3742.1,4.32139222]
[1717053978286,3.57826935,3743.3,3742.1,3.0235]
[1717053978641,0.57826935,3743.2,3742.1,3.0235]
[1717053978873,1.60295,3743.1,3742.1,3.0235]
[1717053979081,0.51812194,3743.0,3742.1,3.0235]
[1717053979357,1.60295,3743.1,3742.1,3.0235]
[1717053979358,5.18121935,3743.1,3742.1,3.0235]
[1717053979555,0.57826935,3743.0,3742.1,3.0235]
[1717053979765,3.0,3743.0,3742.1,3.0235]
[1717053980055,0.57826935,3742.9,3742.1,3.0235]
[1717053980254,0.57826935,3742.9,3742.2,0.462694]
[1717053980689,3.57826935,3743.0,3742.2,0.462694]
[1717053980890,0.57826935,3742.9,3742.2,0.462694]
[1717053981100,1.60295,3743.1,3742.2,0.462694]
[1717053981296,1.60295,3743.1,3742.3,0.3486194]
[1717053983384,1.60295,3743.1,3742.2,0.462694]
[1717053983702,1.60295,3743.1,3741.5,2.4539]
[1717053984001,1.60303,3742.9,3741.5,2.4539]
[1717053984467,1.60321,3742.5,3741.5,2.4539]
[1717053984662,1.60335,3742.2,3741.2,0.59556165]
[1717053984873,1.60335,3742.2,3741.0,2.4539]
[1717053985405,2.18149042,3742.2,3741.0,2.4539]
[1717053985959,1.60335,3742.2,3741.1,2.90167222]
[1717053986172,1.60335,3742.2,3742.0,0.0044183]
[1717053987359,2.12149904,3742.2,3742.0,0.0044183]
[1717053987782,2.69963946,3742.2,3742.0,0.0044183]
[1717053991290,1.94301064,3742.1,3742.0,0.0044183]
[1717053991494,2.52115106,3742.1,3742.0,0.0044183]
[1717053992515,9.62784328,3742.1,3742.0,0.0044183]
[1717053992745,10.28537146,3742.1,3742.0,0.0044183]
[1717053993266,10.28559592,3742.1,3742.0,0.0044183]
[1717053993913,8.4377037,3742.1,3742.0,0.0044183]
[1717053994061,3.17915333,3742.1,3742.0,0.0044183]
[1717053994263,6.89444555,3742.1,3742.0,0.0044183]
[1717053995366,12.40444555,3742.1,3742.0,0.0044183]
[1717053995768,5.52162515,3742.1,3742.0,0.0044183]
[1717053996031,2.52162515,3742.1,3742.0,0.0044183]
[1717053997328,0.57836488,3742.1,3742.0,0.0044183]